{"text_format":"3","workbook":"xlsx","n_sheets":1,"sheets":["Протокол ШЭ ВОШ по предмету"],"not_rendered":{"external_links":1,"defined_names":1},"read":"whole","date_system":"1900"}

{"sheet":"Протокол ШЭ ВОШ по предмету","index":0,"n_rows":104,"n_cols":15,"rows_kept":104}
["№","Фамилия","Имя","Отчество","Дата рождения","Пол","Участник с ОВЗ (да/нет)","Класс обучения","Класс участия","Балл","Максимальный балл","Статус","Призёр муниципального этапа прошлого года","ФИО учителя","Место работы учителя"]
[1,"Буланов ","Владислав","Алексеевич","2012-02-09","М","нет",4,4,49,75,"победитель","нет","Гильманова Алина Ханифовна","МБОУ «Многопрофильный лицей №37» НМР РТ"]
[2,"Ибашаев","Олег","Евгеньевич","2012-06-05","М","нет",4,4,48,75,"призер","нет","Гильманова Алина Ханифовна","МБОУ «Многопрофильный лицей №37» НМР РТ"]
[3,"Кузнецова","Кристина","Алексеевна","2012-08-25","Ж","нет",4,4,47,75,"участник","нет","Сальлева Татьяна Ивановна","МБОУ «Многопрофильный лицей №37» НМР РТ"]
[4,"Устинов","Владислав","Дмитриевич","2012-10-22","М","нет",4,4,39,75,"участник","нет","Сальлева Татьяна Ивановна","МБОУ «Многопрофильный лицей №37» НМР РТ"]
[5,"Матросова ","Виктория","Олеговна","2011-12-19","Ж","нет",4,4,35,75,"участник","нет","Сальлева Татьяна Ивановна","МБОУ «Многопрофильный лицей №37» НМР РТ"]
[6,"Шишкина","Ангелина","Алексеевна","2012-09-25","Ж","нет",4,4,34,75,"участник","нет","Сальлева Татьяна Ивановна","МБОУ «Многопрофильный лицей №37» НМР РТ"]
[7,"Манахова ","Дарья","Андреевна","2012-11-01","Ж","нет",4,4,31,75,"участник","нет","Сальлева Татьяна Ивановна","МБОУ «Многопрофильный лицей №37» НМР РТ"]
[8,"Пустовалов ","Егор","Алексеевич","2012-05-31","М","нет",4,4,27,75,"участник","нет","Сальлева Татьяна Ивановна","МБОУ «Многопрофильный лицей №37» НМР РТ"]
[9,"Ишкулов ","Владимир ","Андреевич","2012-08-27","М","нет",4,4,24,75,"участник","нет","Гильманова Ляйля Мукатдасовна","МБОУ «Многопрофильный лицей №37» НМР РТ"]
[10,"Голдобин ","Максим","Денисович","2012-06-29","М","нет",4,4,24,75,"участник","нет","Гильманова Ляйля Мукатдасовна","МБОУ «Многопрофильный лицей №37» НМР РТ"]
[11,"Нарочнин","Матвей ","Александрович","2012-09-09","М","нет",4,4,22,75,"участник","нет","Гильманова Ляйля Мукатдасовна","МБОУ «Многопрофильный лицей №37» НМР РТ"]
[12,"Шепелева ","Полина","Алексеевна","2012-08-30","Ж","нет",4,4,19,75,"участник","нет","Сальлева Татьяна Ивановна","МБОУ «Многопрофильный лицей №37» НМР РТ"]
[13,"Черемисина","София","Андреевна","2011-09-16","Ж","нет",5,5,42,70,"победитель","нет","Ханафиева Лейсан Файзехановна","МБОУ «Многопрофильный лицей №37» НМР РТ"]
[14,"Поляков ","Семён","Сергеевич","2011-04-03","М","нет",5,5,40,70,"призер","нет","Ханафиева Лейсан Файзехановна","МБОУ «Многопрофильный лицей №37» НМР РТ"]
[15,"Голованова","Аделина","Эдуардовна","2011-09-18","Ж","нет",5,5,38,70,"участник","нет","Ханафиева Лейсан Файзехановна","МБОУ «Многопрофильный лицей №37» НМР РТ"]
[16,"Багаутдинова ","Аделя","Ильнаровна","2011-11-19","Ж","нет",5,5,31,70,"участник","нет","Ханафиева Лейсан Файзехановна","МБОУ «Многопрофильный лицей №37» НМР РТ"]
[17,"Ильмухина \n","Марьяна ","Игоревна","2010-10-14","Ж","нет",5,5,31,70,"участник","нет","Ханафиева Лейсан Файзехановна","МБОУ «Многопрофильный лицей №37» НМР РТ"]
[18,"Галимов"," Райхан ","Ильшатович ","2011-05-25","М","нет",5,5,29,70,"участник","нет","Ханафиева Лейсан Файзехановна","МБОУ «Многопрофильный лицей №37» НМР РТ"]
[19,"Бикмурзин ","Амир","Айдарович",{"$f":"[1]Протокол!$F$7","v":"2011-07-21"},"М","нет",5,5,28,70,"участник","нет","Ханафиева Лейсан Файзехановна","МБОУ «Многопрофильный лицей №37» НМР РТ"]
[20,"Ибнагимова","Камилла","Руслановна",{"$f":"[1]Протокол!$F$10","v":"2011-08-18"},"Ж","нет",5,5,25,70,"участник","нет","Ханафиева Лейсан Файзехановна","МБОУ «Многопрофильный лицей №37» НМР РТ"]
[21,"Нагимов","Расул","Ильшатович",{"$f":"[1]Протокол!$F$13","v":"2011-01-20"},"М","нет",5,5,23,70,"участник","нет","Ханафиева Лейсан Файзехановна","МБОУ «Многопрофильный лицей №37» НМР РТ"]
[22,"Саитова","Динара","Эдуардовна",{"$f":"[1]Протокол!$F$16","v":"2011-01-16"},"Ж","нет",5,5,21,70,"участник","нет","Ханафиева Лейсан Файзехановна","МБОУ «Многопрофильный лицей №37» НМР РТ"]
[23,"Сахабиев","Руслан","Рустамович",{"$f":"[1]Протокол!$F$17","v":"2010-12-08"},"М","нет",5,5,21,70,"участник","нет","Ханафиева Лейсан Файзехановна","МБОУ «Многопрофильный лицей №37» НМР РТ"]
[24,"Ярмиева ","Риана","Атласовна",{"$f":"[1]Протокол!$F$18","v":"2011-04-04"},"Ж","нет",5,5,17,70,"участник","нет","Ханафиева Лейсан Файзехановна","МБОУ «Многопрофильный лицей №37» НМР РТ"]
[25,"Шарипянов","Амир","Ниязович",{"$f":"[1]Протокол!$F$19","v":"2011-09-22"},"М","нет",5,5,15,70,"участник","нет","Ханафиева Лейсан Файзехановна","МБОУ «Многопрофильный лицей №37» НМР РТ"]
[26,"Мингараева","Аделя","Ленаровна",{"$f":"[1]Протокол!$F$11","v":"2011-10-14"},"Ж","нет",5,5,11,70,"участник","нет","Ханафиева Лейсан Файзехановна","МБОУ «Многопрофильный лицей №37» НМР РТ"]
[27,"Демидова"," Ксения ","Александровна","2010-06-07","Ж","нет",6,6,29,54,"Победитель","нет","Ханафиева Лейсан Файзехановна","МБОУ «Многопрофильный лицей №37» НМР РТ"]
[28,"Бусыгина","Анна","Алексеевна","2010-07-29","Ж","нет",6,6,28,54,"призер","нет","Ханафиева Лейсан Файзехановна","МБОУ «Многопрофильный лицей №37» НМР РТ"]
[29,"Николаева","Ангелина","Алексеевна","2010-01-19","Ж","нет",6,6,27,54,"участник","нет","Ханафиева Лейсан Файзехановна","МБОУ «Многопрофильный лицей №37» НМР РТ"]
[30,"Габдуллина"," Самира ","Айратовна",{"$f":"[1]Протокол!F26","v":"2010-05-15"},"Ж","нет",6,6,25,54,"участник","нет","Гильмуллина Гулия Рашатовна","МБОУ «Многопрофильный лицей №37» НМР РТ"]
[31,"Гузаеров","Шамиль"," Раилевич",{"$f":"[1]Протокол!F27","v":"2010-05-04"},"М","нет",6,6,37,54,"участник","нет","Гильмуллина Гулия Рашатовна","МБОУ «Многопрофильный лицей №37» НМР РТ"]
[32,"Зинатуллин","Аяз ","Фаязович",{"$f":"[1]Протокол!F28","v":"2010-10-24"},"Ж","нет",6,6,35,54,"участник","нет","Гильмуллина Гулия Рашатовна","МБОУ «Многопрофильный лицей №37» НМР РТ"]
[33,"Мельникова"," Карина ","Александровна","2010-03-26","Ж","нет",6,6,28,54,"участник","нет","Гильмуллина Гулия Рашатовна","МБОУ «Многопрофильный лицей №37» НМР РТ"]
[34,"Сираев ","Риназ ","Рамилевич","2010-05-21","М","нет",6,6,25,54,"участник","нет","Гильмуллина Гулия Рашатовна","МБОУ «Многопрофильный лицей №37» НМР РТ"]
[35,"Шарафутдинов ","Тимур ","Ленарович","2010-10-20","М","нет",6,6,24,54,"участник","нет","Гильмуллина Гулия Рашатовна","МБОУ «Многопрофильный лицей №37» НМР РТ"]
[36,"Чутаева ","Розалина","Руслановна",{"$f":"[1]Протокол!F33","v":"2010-04-22"},"Ж","нет",6,6,24,54,"участник","нет","Гильмуллина Гулия Рашатовна","МБОУ «Многопрофильный лицей №37» НМР РТ"]
[37,"Гайфутдинов "," Ислам "," Айнурович",{"$f":"[1]Протокол!F34","v":"2009-11-11"},"М","нет",6,6,14,54,"участник","нет","Гильмуллина Гулия Рашатовна","МБОУ «Многопрофильный лицей №37» НМР РТ"]
[38,"Каримов "," Ранис "," Равилевич",{"$f":"[1]Протокол!F35","v":"2009-11-18"},"М","нет",6,6,11,54,"участник","нет","Гильмуллина Гулия Рашатовна","МБОУ «Многопрофильный лицей №37» НМР РТ"]
[39,"Пещеров ","Матвей","Сергеевич",{"$f":"[1]Протокол!F36","v":"2009-04-19"},"М","нет",6,6,9,54,"участник","нет","Гильмуллина Гулия Рашатовна","МБОУ «Многопрофильный лицей №37» НМР РТ"]
[40,"Смирнов ","Альберт"," Юрьевич","2009-11-14","М","нет",7,7,{"$f":"[1]Протокол!I26","v":36},58,"победитель","нет","Гильмуллина Гулия Рашатовна","МБОУ «Многопрофильный лицей №37» НМР РТ"]
[41,"Хоснуллин ","Камиль ","Ильшатович",{"$f":"[1]Протокол!$F$43","v":"2009-05-18"},"М","нет",7,7,{"$f":"[1]Протокол!I27","v":34},58,"призер","нет","Гильмуллина Гулия Рашатовна","МБОУ «Многопрофильный лицей №37» НМР РТ"]
[42,"Фомина ","Аделина ","Дмитриевна","2008-12-17","Ж","нет",7,7,32,58,"призер","нет","Гильмуллина Гулия Рашатовна","МБОУ «Многопрофильный лицей №37» НМР РТ"]
[43,"Хузяхметова ","Сабина ","Рафиловна","2009-08-19","Ж","нет",7,7,30,58,"участник","нет","Гильмуллина Гулия Рашатовна","МБОУ «Многопрофильный лицей №37» НМР РТ"]
[44,"Мингараева ","Залина ","Ленаровна",{"$f":"[1]Протокол!F44","v":"2009-05-12"},"Ж","нет",7,7,26,58,"участник","нет","Гильмуллина Гулия Рашатовна","МБОУ «Многопрофильный лицей №37» НМР РТ"]
[45,"Баширова","Эльвина","Ильназовна",{"$f":"[1]Протокол!F45","v":"2009-02-23"},"Ж","нет",7,7,22,58,"участник","нет","Гильмуллина Гулия Рашатовна","МБОУ «Многопрофильный лицей №37» НМР РТ"]
[46,"Юматова","Зарина","Алексеевна",{"$f":"[1]Протокол!F46","v":"2009-07-06"},"Ж","нет",7,7,22,58,"участник","нет","Гильмуллина Гулия Рашатовна","МБОУ «Многопрофильный лицей №37» НМР РТ"]
[47,"Магданурова","Ильдана","Руслановна",{"$f":"[1]Протокол!F47","v":"2009-08-05"},"Ж","нет",7,7,21,58,"участник","нет","Гильмуллина Гулия Рашатовна","МБОУ «Многопрофильный лицей №37» НМР РТ"]
[48,"Мухлисов","Айнур","Ренатович",{"$f":"[1]Протокол!F48","v":"2009-08-13"},"М","нет",7,7,20,58,"участник","нет","Гильмуллина Гулия Рашатовна","МБОУ «Многопрофильный лицей №37» НМР РТ"]
[49,"Махмутов","Эльдар","Русланович",{"$f":"[1]Протокол!F49","v":"2009-09-07"},"М","нет",7,7,19,58,"участник","нет","Гильмуллина Гулия Рашатовна","МБОУ «Многопрофильный лицей №37» НМР РТ"]
[50,"Абдуллин ","Эмир ","Эльмарович",{"$f":"[1]Протокол!$F$42","v":"2009-01-03"},"М","нет",7,7,18,58,"участник","нет","Гильмуллина Гулия Рашатовна","МБОУ «Многопрофильный лицей №37» НМР РТ"]
[51,"Миниахметова","Эльвина","Маратовна",{"$f":"[1]Протокол!F51","v":"2009-10-25"},"Ж","нет",7,7,15,58,"участник","нет","Гильмуллина Гулия Рашатовна","МБОУ «Многопрофильный лицей №37» НМР РТ"]
[52,"Муртазин","Адель","Ахтямович",{"$f":"[1]Протокол!F52","v":"2009-06-16"},"М","нет",7,7,14,58,"участник","нет","Гильмуллина Гулия Рашатовна","МБОУ «Многопрофильный лицей №37» НМР РТ"]
[53,"Гарипова","Эльвина","Ильдаровна",{"$f":"[1]Протокол!F53","v":"2009-05-18"},"Ж","нет",7,7,11,58,"участник","нет","Гильмуллина Гулия Рашатовна","МБОУ «Многопрофильный лицей №37» НМР РТ"]
[54,"Максимов ","Владимир ","Евгеньевич",{"$f":"[1]Протокол!$F$62","v":"2007-12-23"},"М","нет",8,8,54,78,"победитель","нет","Усманова Рузиля Решитовна","МБОУ «Многопрофильный лицей №37» НМР РТ"]
[55,"Аскарова ","Диляра ","Илдаровна","2008-01-24","Ж","нет",8,8,52,78,"призер","нет","Усманова Рузиля Решитовна","МБОУ «Многопрофильный лицей №37» НМР РТ"]
[56,"Амирова","Амина","Руслановна","2009-02-19","Ж","нет",8,8,49,78,"призер","нет","Усманова Рузиля Решитовна","МБОУ «Многопрофильный лицей №37» НМР РТ"]
[57,"Гарифуллина ","Алсу ","Рафисовна","2008-08-20","Ж","нет",8,8,47,78,"участник","нет","Усманова Рузиля Решитовна","МБОУ «Многопрофильный лицей №37» НМР РТ"]
[58,"Байсариева ","Аделя ","Рамилевна","2008-07-13","Ж","нет",8,8,46,78,"участник","нет","Усманова Рузиля Решитовна","МБОУ «Многопрофильный лицей №37» НМР РТ"]
[59,"Сергеева ","Екатерина ","Валентиновна","2008-07-15","Ж","нет",8,8,46,78,"участник","нет","Усманова Рузиля Решитовна","МБОУ «Многопрофильный лицей №37» НМР РТ"]
[60,"Седышев ","Данил ","Павлович","2008-05-05","М","нет",8,8,39,78,"участник","нет","Усманова Рузиля Решитовна","МБОУ «Многопрофильный лицей №37» НМР РТ"]
[61,"Гарифуллина ","Алсу ","Рафисовна","2008-08-20","Ж","нет",8,8,36,78,"участник","нет","Усманова Рузиля Решитовна","МБОУ «Многопрофильный лицей №37» НМР РТ"]
[62,"Салахова ","Камилла ","Алмазовна","2008-10-13","Ж","нет",8,8,32,78,"участник","нет","Усманова Рузиля Решитовна","МБОУ «Многопрофильный лицей №37» НМР РТ"]
[63,"Габдрахимова ","Илина ","Ильдаровна","2008-04-12","Ж","нет",8,8,26,78,"участник","нет","Усманова Рузиля Решитовна","МБОУ «Многопрофильный лицей №37» НМР РТ"]
[64,"Багашев ","Булат ","Марселевич","2008-12-03","М","нет",8,8,25,78,"участник","нет","Усманова Рузиля Решитовна","МБОУ «Многопрофильный лицей №37» НМР РТ"]
[65,"Петухов ","Тимур ","Альбертович","2008-08-03","М","нет",8,8,22,78,"участник","нет","Усманова Рузиля Решитовна","МБОУ «Многопрофильный лицей №37» НМР РТ"]
[66,"Шепелев ","Данил ","Алексеевич","2008-04-23","М","нет",8,8,21,78,"участник","нет","Усманова Рузиля Решитовна","МБОУ «Многопрофильный лицей №37» НМР РТ"]
[67," Бахтигараева ","Ильвина ","Фаритовна","2007-12-10","Ж","нет",8,8,21,78,"участник","нет","Усманова Рузиля Решитовна","МБОУ «Многопрофильный лицей №37» НМР РТ"]
[68,{"$f":"[1]Протокол!B63","v":" Гараев "},{"$f":"[1]Протокол!C63","v":"Булат "},{"$f":"[1]Протокол!D63","v":"Ришатович"},"2008-07-13","М","нет",8,8,18,78,"участник","нет","Усманова Рузиля Решитовна","МБОУ «Многопрофильный лицей №37» НМР РТ"]
[69,"Файзуллин ","Алексей ","Вадимович","2008-03-14","М","нет",8,8,15,78,"участник","нет","Усманова Рузиля Решитовна","МБОУ «Многопрофильный лицей №37» НМР РТ"]
[70,"Смирнов ","Артём","Сергеевич","2007-08-27","М","нет",9,9,9,86,"победитель","нет","Усманова Рузиля Решитовна","МБОУ «Многопрофильный лицей №37» НМР РТ"]
[71,"Гатин ","Данис "," Ренатович","2007-05-26","М","нет",9,9,52,86,"призер","нет","Усманова Рузиля Решитовна","МБОУ «Многопрофильный лицей №37» НМР РТ"]
[72,"Кашапов ","Рамзиль ","Рафаэлевич","2006-12-07","М","нет",9,9,48,86,"участник","нет","Усманова Рузиля Решитовна","МБОУ «Многопрофильный лицей №37» НМР РТ"]
[73,"Хамидуллина ","Адиля ","Алмазовна","2007-07-24","Ж","нет",9,9,41,86,"участник","нет","Усманова Рузиля Решитовна","МБОУ «Многопрофильный лицей №37» НМР РТ"]
[74,"Гильманова "," Камила ","Алмазовна","2006-11-11","Ж","нет",9,9,38,86,"участник","нет","Усманова Рузиля Решитовна","МБОУ «Многопрофильный лицей №37» НМР РТ"]
[75,"Ахметжанов ","Ислам"," Разумович","2006-11-04","М","нет",9,9,36,86,"участник","нет","Усманова Рузиля Решитовна","МБОУ «Многопрофильный лицей №37» НМР РТ"]
[76,"Жаркова ","Дарья ","Дмитриевна","2007-12-20","Ж","нет",9,9,35,86,"участник","нет","Усманова Рузиля Решитовна","МБОУ «Многопрофильный лицей №37» НМР РТ"]
[77,"Сабирзянова ","Камиля ","Ленаровна","2007-01-29","Ж","нет",9,9,28,86,"участник","нет","Усманова Рузиля Решитовна","МБОУ «Многопрофильный лицей №37» НМР РТ"]
[78,"Петров ","Максим ","Андреевич","2007-09-21","М","нет",9,9,16,86,"участник","нет","Усманова Рузиля Решитовна","МБОУ «Многопрофильный лицей №37» НМР РТ"]
[79,"Гильфанова ","Алсу ","Румилевна","2007-03-07","Ж","нет",9,9,16,86,"участник","нет","Усманова Рузиля Решитовна","МБОУ «Многопрофильный лицей №37» НМР РТ"]
[80,"Ахунова ","Самира"," Ильсуровна","2007-03-20","Ж","нет",9,9,13,86,"участник","нет","Усманова Рузиля Решитовна","МБОУ «Многопрофильный лицей №37» НМР РТ"]
[81,"Бикбаева ","Диляра ","Робертовна","2007-02-08","Ж","нет",9,9,9,86,"участник","нет","Усманова Рузиля Решитовна","МБОУ «Многопрофильный лицей №37» НМР РТ"]
[82,"Ахметшина"," Эльвина ","Исламовна","2007-04-27","Ж","нет",9,9,9,86,"участник","нет","Усманова Рузиля Решитовна","МБОУ «Многопрофильный лицей №37» НМР РТ"]
[83,"Перцева ","Ксения ","Александровна","2006-03-30","Ж","нет",10,10,91,122,"победитель","нет","Усманова Рузиля Решитовна","МБОУ «Многопрофильный лицей №37» НМР РТ"]
[84,"Садыкова ","Самира"," Ренатовна","2006-09-22","Ж","нет",10,10,84,122,"участник","нет","Усманова Рузиля Решитовна","МБОУ «Многопрофильный лицей №37» НМР РТ"]
[85,"Шарафиев ","Айнур ","Назилевич","2006-06-16","М","нет",10,10,76,122,"участник","нет","Усманова Рузиля Решитовна","МБОУ «Многопрофильный лицей №37» НМР РТ"]
[86,"Фофонова  ","Юлия ","Артемовна","2006-07-12","Ж","нет",10,10,72,122,"участник","нет","Усманова Рузиля Решитовна","МБОУ «Многопрофильный лицей №37» НМР РТ"]
[87,"Мингалимов ","Раиль ","Рамилевич","2005-11-24","М","нет",10,10,65,122,"участник","нет","Усманова Рузиля Решитовна","МБОУ «Многопрофильный лицей №37» НМР РТ"]
[88,"Музафарова ","Камиля ","Ленаровна","2006-10-03","Ж","нет",10,10,45,122,"участник","нет","Усманова Рузиля Решитовна","МБОУ «Многопрофильный лицей №37» НМР РТ"]
[89,"Ашрафзянова ","Камилла"," Руслановна","2005-12-18","Ж","нет",10,10,39,122,"участник","нет","Усманова Рузиля Решитовна","МБОУ «Многопрофильный лицей №37» НМР РТ"]
[90,"Валиев ","Анвар ","Искандерович","2006-01-11","М","нет",10,10,36,122,"участник","нет","Усманова Рузиля Решитовна","МБОУ «Многопрофильный лицей №37» НМР РТ"]
[91,"Вагаманова ","Альфина ","Альфредовна","2007-01-25","Ж","нет",10,10,35,122,"участник","нет","Усманова Рузиля Решитовна","МБОУ «Многопрофильный лицей №37» НМР РТ"]
[92,"Нуриев ","Реваль ","Радикович","2006-04-21","М","нет",10,10,32,122,"участник","нет","Усманова Рузиля Решитовна","МБОУ «Многопрофильный лицей №37» НМР РТ"]
[93,"Алексеева ","Виктория "," Андреевна","2005-06-25","Ж","нет",11,11,74,107,"победитель","да","Усманова Рузиля Решитовна","МБОУ «Многопрофильный лицей №37» НМР РТ"]
[94,"Зарипова","Наргиз ","Ильгизовна","2005-09-06","Ж","нет",11,11,68,107,"призер","нет","Усманова Рузиля Решитовна","МБОУ «Многопрофильный лицей №37» НМР РТ"]
[95,"Спиридонова ","Анастасия ","Владиславовна","2005-01-28","Ж","нет",11,11,52,107,"участник","нет","Усманова Рузиля Решитовна","МБОУ «Многопрофильный лицей №37» НМР РТ"]
[96,"Ягудина ","Нурия ","Анасовна",{"$f":"[1]Протокол!F93","v":"2005-03-25"},"Ж","нет",11,11,52,107,"участник","нет","Усманова Рузиля Решитовна","МБОУ «Многопрофильный лицей №37» НМР РТ"]
[97,"Хасанова ","Аделя ","Ильшатовна",{"$f":"[1]Протокол!F94","v":"2005-02-16"},"Ж","нет",11,11,51,107,"участник","нет","Усманова Рузиля Решитовна","МБОУ «Многопрофильный лицей №37» НМР РТ"]
[98,"Валиева ","Эльвира ","Айдаровна",{"$f":"[1]Протокол!F95","v":"2005-10-07"},"Ж","нет",11,11,49,107,"участник","нет","Усманова Рузиля Решитовна","МБОУ «Многопрофильный лицей №37» НМР РТ"]
[99,"Гизатуллина ","Ильвина ","Марселевна",{"$f":"[1]Протокол!F96","v":"2005-07-08"},"Ж","нет",11,11,35,107,"участник","нет","Усманова Рузиля Решитовна","МБОУ «Многопрофильный лицей №37» НМР РТ"]
[100,"Нагимова ","Алина ","Ринатовна",{"$f":"[1]Протокол!F97","v":"2005-01-25"},"Ж","нет",11,11,33,107,"участник","нет","Усманова Рузиля Решитовна","МБОУ «Многопрофильный лицей №37» НМР РТ"]
[101," Котляр"," Эллина ","Олеговна",{"$f":"[1]Протокол!F98","v":"2005-10-03"},"Ж","нет",11,11,29,107,"участник","нет","Усманова Рузиля Решитовна","МБОУ «Многопрофильный лицей №37» НМР РТ"]
[102,"Девятова ","Рената ","Айратовна",{"$f":"[1]Протокол!F99","v":"2005-05-23"},"Ж","нет",11,11,28,107,"участник","нет","Усманова Рузиля Решитовна","МБОУ «Многопрофильный лицей №37» НМР РТ"]
[103,"Зубаиров ","Эрик"," Ренатович","2005-07-19","М","нет",11,11,28,107,"участник","нет","Усманова Рузиля Решитовна","МБОУ «Многопрофильный лицей №37» НМР РТ"]